fUSD/lending_fUSD_20260524
["ID","MTS","AMOUNT","RATE_DAILY","PERIOD"]
[422915304,1779618654000,-614.22,0.00025356,2]
[422915301,1779618654000,-1224.0,0.00025288,2]
[422915302,1779618654000,-6060.0,0.00025288,2]
[422915299,1779618654000,-150.0,0.00025288,2]
[422915286,1779618654000,-253.0,0.00025,2]
[422915300,1779618654000,-1271.0,0.00025288,2]
[422915298,1779618654000,-161.92,0.00025233,2]
[422915297,1779618654000,-174.0,0.0002521,2]
[422915295,1779618654000,-646.65982734,0.00025201,2]
[422915296,1779618654000,-1487.0,0.00025205,5]
[422915303,1779618654000,-625.0,0.00025288,2]
[422915306,1779618654000,-992.65,0.00025356,2]
[422915311,1779618654000,-285.68,0.00025786,2]
[422915309,1779618654000,-1000.0,0.000256,2]
[422915314,1779618654000,-500.0,0.000259,7]
[422915320,1779618654000,-500.0,0.00026144,2]
[422915310,1779618654000,-604.0,0.00025637,2]
[422915308,1779618654000,-500.0,0.00025356,2]
[422915321,1779618654000,-992.65,0.00026144,2]
[422915312,1779618654000,-15403.62,0.00025786,2]
[422915315,1779618654000,-500.0,0.000259,7]
[422915313,1779618654000,-2666.13,0.000258,7]
[422915319,1779618654000,-614.22,0.00026144,2]
[422915317,1779618654000,-7751.86112084,0.00026027,2]
[422915316,1779618654000,-2872.2,0.00026,10]
[422915291,1779618654000,-531.0,0.00025,2]
[422915307,1779618654000,-589.0,0.00025356,2]
[422915287,1779618654000,-776.88716274,0.00025,2]
[422915266,1779618654000,-189.32,0.00024658,2]
[422915285,1779618654000,-7709.03352532,0.00025,14]
[422915267,1779618654000,-1000.0,0.00024658,2]
[422915268,1779618654000,-151.0,0.00024658,2]
[422915262,1779618654000,-1487.0,0.00024658,5]
[422915269,1779618654000,-151.0,0.00024658,2]
[422915263,1779618654000,-192.47,0.00024658,15]
[422915264,1779618654000,-151.0,0.00024658,2]
[422915265,1779618654000,-162.125466,0.00024658,2]
[422915270,1779618654000,-151.0,0.00024658,2]
[422915272,1779618654000,-151.0,0.00024658,2]
[422915282,1779618654000,-500.0,0.00024999,2]
[422915281,1779618654000,-589.0,0.00024999,2]
[422915274,1779618654000,-151.0,0.00024658,2]
[422915290,1779618654000,-189.12724105,0.00025,2]
[422915271,1779618654000,-151.0,0.00024658,2]
[422915278,1779618654000,-614.22,0.00024999,2]
[422915276,1779618654000,-2000.0,0.00024965,7]
[422915277,1779618654000,-552.6029531,0.00024999,2]
[422915280,1779618654000,-992.65,0.00024999,2]
[422915279,1779618654000,-500.0,0.00024999,2]
[422915292,1779618654000,-248.0,0.00025,2]
[422915284,1779618654000,-213959.3791185,0.00025,2]
[422915293,1779618654000,-162.0,0.00025,7]
[422915294,1779618654000,-604.0,0.00025082,2]
[422915288,1779618654000,-183.71755222,0.00025,2]
[422915283,1779618654000,-162.51900716,0.00025,2]
[422915289,1779618654000,-400.0,0.00025,2]
[422915275,1779618654000,-153.129605,0.00024658,2]
[422915318,1779618654000,-151.0,0.00026142,7]
[422915273,1779618654000,-151.0,0.00024658,2]
[422915331,1779618654000,-500.0,0.00026544,7]
[422915358,1779618654000,-754.580945,0.00027397,2]
[422915353,1779618654000,-277.88,0.00027397,2]
[422915354,1779618654000,-754.580945,0.00027397,2]
[422915352,1779618654000,-223.948964,0.00027397,2]
[422915350,1779618654000,-151.0,0.00027397,2]
[422915357,1779618654000,-754.580945,0.00027397,2]
[422915355,1779618654000,-754.580945,0.00027397,2]
[422915363,1779618654000,-754.580945,0.00027397,2]
[422915362,1779618654000,-754.580945,0.00027397,2]
[422915364,1779618654000,-754.580945,0.00027397,2]
[422915365,1779618654000,-754.580945,0.00027397,2]
[422915367,1779618654000,-754.580945,0.00027397,2]
[422915378,1779618654000,-186.395641,0.00027397,2]
[422915370,1779618654000,-754.580945,0.00027397,2]
[422915368,1779618654000,-754.580945,0.00027397,2]
[422915366,1779618654000,-754.580945,0.00027397,2]
[422915380,1779618654000,-186.395641,0.00027397,2]
[422915369,1779618654000,-754.580945,0.00027397,2]
[422915372,1779618654000,-754.580945,0.00027397,2]
[422915374,1779618654000,-186.395641,0.00027397,2]
[422915376,1779618654000,-186.395641,0.00027397,2]
[422915373,1779618654000,-754.580946,0.00027397,2]
[422915371,1779618654000,-754.580945,0.00027397,2]
[422915375,1779618654000,-186.395641,0.00027397,2]
[422915381,1779618654000,-186.395641,0.00027397,2]
[422915379,1779618654000,-186.395641,0.00027397,2]
[422915323,1779618654000,-500.0,0.00026144,2]
[422915359,1779618654000,-754.580945,0.00027397,2]
[422915361,1779618654000,-754.580945,0.00027397,2]
[422915377,1779618654000,-186.395641,0.00027397,2]
[422915360,1779618654000,-754.580945,0.00027397,2]
[422915356,1779618654000,-754.580945,0.00027397,2]
[422915322,1779618654000,-589.0,0.00026144,2]
[422915333,1779618654000,-500.0,0.00026544,7]
[422915335,1779618654000,-2000.0,0.00026643,7]
[422915324,1779618654000,-232926.99869687,0.00026145,2]
[422915325,1779618654000,-1584.868062,0.00026145,2]
[422915329,1779618654000,-427.4,0.00026296,2]
[422915328,1779618654000,-2728.0,0.00026254,2]
[422915330,1779618654000,-500.0,0.00026544,7]
[422915334,1779618654000,-505.84,0.00026544,7]
[422915326,1779618654000,-151.313879,0.00026145,2]
[422915327,1779618654000,-604.0,0.00026192,3]
[422915336,1779618654000,-604.0,0.00026746,3]
[422915347,1779618654000,-2500.0,0.00027397,2]
[422915332,1779618654000,-500.0,0.00026544,7]
[422915346,1779618654000,-1500.0,0.00027397,2]
[422915348,1779618654000,-151.0,0.00027397,2]
[422915338,1779618654000,-241.755,0.00026836,14]
[422915339,1779618654000,-181.315,0.00026836,14]
[422915340,1779618654000,-500.0,0.00026996,7]
[422915344,1779618654000,-242.3375,0.00027384,14]
[422915343,1779618654000,-604.0,0.00027301,4]
[422915342,1779618654000,-445.95306326,0.0002726,2]
[422915345,1779618654000,-181.315,0.00027384,14]
[422915337,1779618654000,-242.3375,0.00026836,14]
[422915341,1779618654000,-150.0,0.00027,2]
[422915349,1779618654000,-151.0,0.00027397,2]
[422915351,1779618654000,-151.0,0.00027397,2]
[422915425,1779618655000,-4738.5,0.0002755,30]
[422915420,1779618655000,-1191.1,0.0002755,30]
[422915411,1779618655000,-10042.27,0.00027397,10]
[422915419,1779618655000,-2738.49,0.00027549,7]
[422915424,1779618655000,-4738.5,0.0002755,2]
[422915427,1779618655000,-2609.16,0.0002755,7]
[422915409,1779618655000,-173.905182,0.00027397,2]
[422915421,1779618655000,-1191.1,0.0002755,7]
[422915418,1779618655000,-992.65,0.00027549,7]
[422915412,1779618655000,-837.64,0.000274,2]
[422915413,1779618655000,-150.0,0.00027521,2]
[422915423,1779618655000,-4738.5,0.0002755,7]
[422915429,1779618655000,-2609.16,0.0002755,30]
[422915428,1779618655000,-2609.16,0.0002755,2]
[422915434,1779618655000,-156.12,0.00027611,30]
[422915422,1779618655000,-1191.1,0.0002755,2]
[422915426,1779618655000,-156.12,0.0002755,2]
[422915431,1779618655000,-156.12,0.0002758,7]
[422915432,1779618655000,-155.49,0.0002758,7]
[422915433,1779618655000,-2666.13,0.000276,7]
[422915435,1779618655000,-155.49,0.00027611,30]
[422915442,1779618655000,-155.49,0.00027672,7]
[422915443,1779618655000,-156.12,0.00027702,30]
[422915441,1779618655000,-156.12,0.00027672,7]
[422915439,1779618655000,-156.12,0.00027641,2]
[422915436,1779618655000,-1191.1,0.00027612,7]
[422915438,1779618655000,-2609.16,0.00027612,7]
[422915430,1779618655000,-155.49,0.0002755,2]
[422915408,1779618655000,-151.0,0.00027397,2]
[422915385,1779618655000,-186.395641,0.00027397,2]
[422915417,1779618655000,-614.22,0.00027549,30]
[422915437,1779618655000,-4738.5,0.00027612,7]
[422915382,1779618655000,-186.395641,0.00027397,2]
[422915390,1779618655000,-186.395641,0.00027397,2]
[422915391,1779618655000,-186.395641,0.00027397,2]
[422915384,1779618655000,-186.395641,0.00027397,2]
[422915383,1779618655000,-186.395641,0.00027397,2]
[422915386,1779618655000,-186.395641,0.00027397,2]
[422915387,1779618655000,-186.395641,0.00027397,2]
[422915388,1779618655000,-186.395641,0.00027397,2]
[422915389,1779618655000,-186.395641,0.00027397,2]
[422915393,1779618655000,-186.395637,0.00027397,2]
[422915403,1779618655000,-151.0,0.00027397,2]
[422915396,1779618655000,-151.0,0.00027397,2]
[422915407,1779618655000,-151.0,0.00027397,2]
[422915404,1779618655000,-151.0,0.00027397,2]
[422915402,1779618655000,-151.0,0.00027397,2]
[422915395,1779618655000,-151.0,0.00027397,2]
[422915397,1779618655000,-151.0,0.00027397,2]
[422915398,1779618655000,-151.0,0.00027397,2]
[422915401,1779618655000,-151.0,0.00027397,2]
[422915392,1779618655000,-186.395641,0.00027397,2]
[422915399,1779618655000,-151.0,0.00027397,2]
[422915394,1779618655000,-151.0,0.00027397,2]
[422915405,1779618655000,-151.0,0.00027397,2]
[422915406,1779618655000,-151.0,0.00027397,2]
[422915415,1779618655000,-65946.56052841,0.00027544,7]
[422915410,1779618655000,-12050.72,0.00027397,10]
[422915416,1779618655000,-7095.45005091,0.00027544,7]
[422915400,1779618655000,-151.0,0.00027397,2]
[422915440,1779618655000,-155.49,0.00027641,2]
[422915414,1779618655000,-250.01,0.00027534,6]
[422915444,1779618655000,-155.49,0.00027702,30]
[422915470,1779618655000,-156.12,0.00027946,7]
[422915478,1779618655000,-156.12,0.00028007,2]
[422915505,1779618655000,-1224.0,0.00028288,2]
[422915480,1779618655000,-156.12,0.00028038,7]
[422915481,1779618655000,-155.49,0.00028038,7]
[422915484,1779618655000,-200.0,0.0002808,2]
[422915486,1779618655000,-200.0,0.0002808,2]
[422915483,1779618655000,-155.49,0.00028068,30]
[422915491,1779618655000,-1191.1,0.00028088,7]
[422915489,1779618655000,-200.0,0.0002808,2]
[422915482,1779618655000,-156.12,0.00028068,30]
[422915485,1779618655000,-200.0,0.0002808,2]
[422915488,1779618655000,-200.0,0.0002808,2]
[422915472,1779618655000,-156.12,0.00027977,30]
[422915490,1779618655000,-309.77835106,0.0002808,2]
[422915493,1779618655000,-2609.16,0.00028088,7]
[422915495,1779618655000,-500.0,0.00028092,60]
[422915496,1779618655000,-156.12,0.00028099,2]
[422915499,1779618655000,-156.17,0.0002813,7]
[422915503,1779618655000,-2609.16,0.00028246,2]
[422915498,1779618655000,-154.95,0.0002813,7]
[422915494,1779618655000,-500.0,0.00028092,60]
[422915502,1779618655000,-4738.5,0.00028246,2]
[422915497,1779618655000,-155.49,0.00028099,2]
[422915500,1779618655000,-155.51,0.0002813,7]
[422915501,1779618655000,-1191.1,0.00028246,2]
[422915504,1779618655000,-427.4,0.00028267,2]
[422915445,1779618655000,-156.12,0.00027733,2]
[422915487,1779618655000,-200.0,0.0002808,2]
[422915476,1779618655000,-150.0,0.00028,5]
[422915492,1779618655000,-4738.5,0.00028088,7]
[422915475,1779618655000,-215.34753388,0.00028,7]
[422915471,1779618655000,-155.49,0.00027946,7]
[422915448,1779618655000,-155.49,0.00027763,7]
[422915450,1779618655000,-4738.5,0.00027771,2]
[422915455,1779618655000,-156.12,0.00027824,2]
[422915452,1779618655000,-2609.16,0.00027771,2]
[422915449,1779618655000,-1191.1,0.00027771,2]
[422915447,1779618655000,-156.12,0.00027763,7]
[422915454,1779618655000,-155.49,0.00027794,30]
[422915451,1779618655000,-2609.15,0.00027771,2]
[422915453,1779618655000,-156.12,0.00027794,30]
[422915456,1779618655000,-155.49,0.00027824,2]
[422915461,1779618655000,-155.49,0.00027885,30]
[422915464,1779618655000,-1191.1,0.00027929,30]
[422915463,1779618655000,-155.49,0.00027916,2]
[422915446,1779618655000,-155.49,0.00027733,2]
[422915460,1779618655000,-156.12,0.00027885,30]
[422915474,1779618655000,-325.0,0.00028,2]
[422915462,1779618655000,-156.12,0.00027916,2]
[422915477,1779618655000,-150.0,0.00028,2]
[422915473,1779618655000,-155.49,0.00027977,30]
[422915468,1779618655000,-181.315,0.00027932,14]
[422915469,1779618655000,-670.58624095,0.0002794,2]
[422915466,1779618655000,-2609.16,0.00027929,30]
[422915479,1779618655000,-155.49,0.00028007,2]
[422915467,1779618655000,-242.3375,0.00027932,14]
[422915457,1779618655000,-156.12,0.00027855,7]
[422915459,1779618655000,-604.0,0.00027856,4]
[422915465,1779618655000,-4738.5,0.00027929,30]
[422915458,1779618655000,-155.49,0.00027855,7]
[422915530,1779618656000,-232.33154651,0.00028659,7]
[422915531,1779618656000,-287.23615621,0.00028659,7]
[422915532,1779618656000,-159.69837831,0.00028659,7]
[422915527,1779618656000,-193.45150516,0.00028657,7]
[422915528,1779618656000,-180.48269857,0.00028659,7]
[422915533,1779618656000,-191.61696381,0.00028665,7]
[422915536,1779618656000,-155.95999047,0.00028665,7]
[422915538,1779618656000,-158.41537273,0.00028666,7]
[422915529,1779618656000,-155.93834752,0.00028659,2]
[422915540,1779618656000,-155.65232811,0.00028678,7]
[422915539,1779618656000,-2738.49,0.00028666,7]
[422915534,1779618656000,-218.50902373,0.00028665,7]
[422915537,1779618656000,-153.18684178,0.00028666,7]
[422915526,1779618656000,-165.88101354,0.00028657,7]
[422915542,1779618656000,-161.52803581,0.00028678,7]
[422915535,1779618656000,-333.77959054,0.00028665,7]
[422915525,1779618656000,-167.05753209,0.00028657,7]
[422915510,1779618656000,-542.78,0.00028343,7]
[422915521,1779618656000,-5000.0,0.00028585,2]
[422915553,1779618656000,-2666.13,0.000289,7]
[422915508,1779618656000,-152.0,0.00028313,3]
[422915506,1779618656000,-6057.0,0.00028288,2]
[422915509,1779618656000,-512.55812056,0.00028322,7]
[422915512,1779618656000,-4738.5,0.00028405,30]
[422915507,1779618656000,-625.0,0.00028288,2]
[422915514,1779618656000,-604.0,0.00028411,5]
[422915513,1779618656000,-2609.16,0.00028405,30]
[422915515,1779618656000,-1597.0,0.0002853,3]
[422915516,1779618656000,-2316.0,0.0002853,3]
[422915511,1779618656000,-1191.1,0.00028405,30]
[422915518,1779618656000,-1191.15,0.00028565,7]
[422915517,1779618656000,-4738.54,0.00028565,7]
[422915519,1779618656000,-5001.81104238,0.00028585,2]
[422915520,1779618656000,-5000.0,0.00028585,2]
[422915523,1779618656000,-5000.0,0.00028585,2]
[422915522,1779618656000,-5000.0,0.00028585,2]
[422915524,1779618656000,-154.1018737,0.00028657,7]
[422915541,1779618656000,-200.09643109,0.00028678,7]
[422915550,1779618656000,-252.84,0.00028855,2]
[422915546,1779618656000,-329.5062501,0.00028678,7]
[422915568,1779618656000,-346.10646345,0.00028999,120]
[422915552,1779618656000,-150.0,0.00028897,2]
[422915572,1779618656000,-589.0,0.00028999,120]
[422915570,1779618656000,-992.65,0.00028999,7]
[422915571,1779618656000,-992.65,0.00028999,7]
[422915569,1779618656000,-992.65,0.00028999,7]
[422915573,1779618656000,-589.0,0.00028999,120]
[422915567,1779618656000,-500.0,0.00028999,120]
[422915575,1779618656000,-521.28418723,0.00028999,120]
[422915576,1779618656000,-153.89,0.00029,2]
[422915578,1779618656000,-195846.33706168,0.00029,2]
[422915579,1779618656000,-2775.96635846,0.00029,2]
[422915580,1779618656000,-773.21216671,0.00029,2]
[422915581,1779618656000,-613.19085056,0.00029,2]
[422915582,1779618656000,-948.99511889,0.00014883,2]
[422915583,1779618656000,-2147.57457912,0.00014883,2]
[422915577,1779618656000,-1376.44,0.00029,2]
[422915566,1779618656000,-614.22,0.00028999,30]
[422915574,1779618656000,-589.0,0.00028999,120]
[422915564,1779618656000,-614.22,0.00028999,30]
[422915544,1779618656000,-194.17469643,0.00028678,7]
[422915543,1779618656000,-150.66921485,0.00028678,7]
[422915545,1779618656000,-150.6077814,0.00028678,7]
[422915551,1779618656000,-151.72,0.00028855,2]
[422915563,1779618656000,-151.0,0.00028997,7]
[422915549,1779618656000,-215.34753388,0.000288,7]
[422915548,1779618656000,-470.21870173,0.00028767,120]
[422915555,1779618656000,-450.64077211,0.0002891,7]
[422915547,1779618656000,-169.48239671,0.0002869,7]
[422915554,1779618656000,-150.0,0.000289,30]
[422915560,1779618656000,-500.0,0.00028968,2]
[422915558,1779618656000,-2237.4301299,0.00028959,2]
[422915562,1779618656000,-32107.93782951,0.0002897,6]
[422915557,1779618656000,-2674.0444193,0.00028959,2]
[422915559,1779618656000,-604.0,0.00028965,6]
[422915565,1779618656000,-614.22,0.00028999,30]
[422915561,1779618656000,-756.46,0.00028968,2]
[422915556,1779618656000,-500.0,0.00028914,60]
[422915591,1779618657000,-3635.0,0.00020258,2]
[422915590,1779618657000,-1618.42643773,0.00014883,2]
[422915589,1779618657000,-982.07925712,0.00014883,2]
[422915586,1779618657000,-343.10411232,0.00014774,2]
[422915587,1779618657000,-147.07539286,0.00014774,2]
[422915585,1779618657000,-1220.52685329,0.00014774,2]
[422915584,1779618657000,-1141.95986912,0.00014774,2]
[422915588,1779618657000,-102.92460714,0.00014883,2]
[422915592,1779618657000,-3635.0,0.00023258,2]
[422915595,1779618657000,-8368.56,0.00027397,10]
[422915596,1779618657000,-2609.15,0.0002755,7]
[422915594,1779618657000,-1551.64295321,0.00026258,2]
[422915598,1779618657000,-2609.15,0.0002755,30]
[422915597,1779618657000,-2609.15,0.0002755,2]
[422915599,1779618657000,-2609.15,0.00027612,7]
[422915600,1779618657000,-2609.15,0.00027929,30]
[422915603,1779618657000,-47954.18087946,0.00029,2]
[422915602,1779618657000,-1191.19,0.00028565,7]
[422915601,1779618657000,-4738.55,0.00028565,7]
[422915593,1779618657000,-2083.35704679,0.00026258,2]
[422915604,1779618682000,-150.0,0.00010698,2]
[422915605,1779618686000,-150.0,0.00010698,2]
[422915606,1779618688000,-150.0,0.00010699,2]
[422915607,1779618783000,300.0,0.00016922,61]
[422915608,1779618785000,300.0,0.00016922,81]
[422915609,1779618948000,356.0,0.00028082,120]
[422915610,1779619021000,181.78,0.00025715,120]
[422915639,1779619831000,-354.0,0.00014712,2]
[422915640,1779619831000,-5800.0,0.00014866,2]
[422915630,1779619831000,-500.0,0.00013698,2]
[422915631,1779619831000,-500.0,0.00013698,2]
[422915638,1779619831000,-154.67,0.00014601,2]
[422915635,1779619831000,-305.0,0.00014482,2]
[422915632,1779619831000,-500.0,0.00013698,2]
[422915633,1779619831000,-500.0,0.00013698,2]
[422915629,1779619831000,-500.0,0.00013698,2]
[422915634,1779619831000,-154.67,0.00013937,2]
[422915628,1779619831000,-500.0,0.00013698,2]
[422915637,1779619831000,-500.0,0.0001449,2]
[422915619,1779619831000,-823.83172686,0.0001068,2]
[422915627,1779619831000,-1200.0,0.00013697,2]
[422915626,1779619831000,-300.0,0.00013697,2]
[422915624,1779619831000,-154.67,0.0001261,2]
[422915621,1779619831000,-208.8304494,0.00010786,2]
[422915622,1779619831000,-215.34753388,0.00010791,2]
[422915625,1779619831000,-154.67,0.00013273,2]
[422915623,1779619831000,-154.67,0.00011946,2]
[422915620,1779619831000,-112.76205495,0.0001068,2]
[422915618,1779619831000,-239.74204315,0.000106,2]
[422915617,1779619831000,-388.8323745,0.000106,2]
[422915616,1779619831000,-458.44747329,0.000106,2]
[422915643,1779619831000,-150.0,0.00014889,2]
[422915636,1779619831000,-500.0,0.0001449,2]
[422915647,1779619831000,-445.05862633,0.00014998,2]
[422915665,1779619831000,-178.1,0.0001841,2]
[422915644,1779619831000,-500.0,0.0001489,2]
[422915648,1779619831000,-500.0,0.00014999,2]
[422915670,1779619831000,-150.0,0.00018873,2]
[422915667,1779619831000,-150.0,0.000187,2]
[422915668,1779619831000,-500.0,0.00018873,2]
[422915664,1779619831000,-240.55322759,0.000183,2]
[422915669,1779619831000,-150.0,0.00018873,2]
[422915662,1779619831000,-4745.11,0.00017732,2]
[422915663,1779619831000,-154.67,0.00017919,2]
[422915658,1779619831000,-154.67,0.00017255,2]
[422915655,1779619831000,-178.1,0.00016438,2]
[422915654,1779619831000,-154.67,0.00015928,2]
[422915657,1779619831000,-168.14,0.00016848,2]
[422915666,1779619831000,-154.67,0.00018583,2]
[422915656,1779619831000,-154.67,0.00016592,2]
[422915659,1779619831000,-299.99,0.00017728,4]
[422915641,1779619831000,-1209.25279648,0.00014874,2]
[422915642,1779619831000,-4590.74720352,0.00014874,2]
[422915646,1779619831000,-500.0,0.00014998,2]
[422915650,1779619831000,-500.0,0.00014999,2]
[422915645,1779619831000,-500.0,0.0001489,2]
[422915652,1779619831000,-420.0,0.0001501,2]
[422915651,1779619831000,-463.34498201,0.00014999,2]
[422915660,1779619831000,-2694.99969486,0.00017728,2]
[422915649,1779619831000,-500.0,0.00014999,2]
[422915653,1779619831000,-154.67,0.00015264,2]
[422915661,1779619831000,-1782.92030514,0.00017728,2]
[422915693,1779619832000,-500.0,0.00018873,2]
[422915701,1779619832000,-150.0,0.00018873,2]
[422915692,1779619832000,-500.0,0.00018873,2]
[422915695,1779619832000,-500.0,0.00018873,2]
[422915698,1779619832000,-500.0,0.00018873,2]
[422915697,1779619832000,-150.0,0.00018873,2]
[422915702,1779619832000,-500.0,0.00018873,2]
[422915713,1779619832000,-500.0,0.00018873,2]
[422915712,1779619832000,-150.0,0.00018873,2]
[422915703,1779619832000,-350.0,0.00018873,2]
[422915707,1779619832000,-500.0,0.00018873,2]
[422915710,1779619832000,-150.0,0.00018873,2]
[422915711,1779619832000,-500.0,0.00018873,2]
[422915709,1779619832000,-500.0,0.00018873,2]
[422915705,1779619832000,-500.0,0.00018873,2]
[422915706,1779619832000,-150.0,0.00018873,2]
[422915708,1779619832000,-150.0,0.00018873,2]
[422915714,1779619832000,-500.0,0.00018873,2]
[422915719,1779619832000,-150.0,0.00018873,2]
[422915717,1779619832000,-500.0,0.00018873,2]
[422915691,1779619832000,-500.0,0.00018873,2]
[422915704,1779619832000,-500.0,0.00018873,2]
[422915696,1779619832000,-500.0,0.00018873,2]
[422915674,1779619832000,-189.08975406,0.00018873,2]
[422915688,1779619832000,-500.0,0.00018873,2]
[422915673,1779619832000,-500.0,0.00018873,2]
[422915671,1779619832000,-263.19957962,0.00018873,2]
[422915672,1779619832000,-150.0,0.00018873,2]
[422915675,1779619832000,-500.0,0.00018873,2]
[422915686,1779619832000,-500.0,0.00018873,2]
[422915687,1779619832000,-500.0,0.00018873,2]
[422915679,1779619832000,-150.0,0.00018873,2]
[422915685,1779619832000,-500.0,0.00018873,2]
[422915676,1779619832000,-500.0,0.00018873,2]
[422915677,1779619832000,-438.22730272,0.00018873,2]
[422915716,1779619832000,-250.0,0.00018873,2]
[422915680,1779619832000,-150.0,0.00018873,2]
[422915681,1779619832000,-150.0,0.00018873,2]
[422915678,1779619832000,-150.0,0.00018873,2]
[422915682,1779619832000,-217.14255649,0.00018873,2]
[422915683,1779619832000,-500.0,0.00018873,2]
[422915684,1779619832000,-500.0,0.00018873,2]
[422915689,1779619832000,-500.0,0.00018873,2]
[422915699,1779619832000,-500.0,0.00018873,2]
[422915700,1779619832000,-500.0,0.00018873,2]
[422915694,1779619832000,-500.0,0.00018873,2]
[422915690,1779619832000,-500.0,0.00018873,2]
[422915715,1779619832000,-150.0,0.00018873,2]
[422915724,1779619832000,-500.0,0.00018873,2]
[422915722,1779619832000,-240.02127093,0.00018873,2]
[422915745,1779619832000,-165.0,0.0002,2]
[422915746,1779619832000,-541.0,0.0002,2]
[422915748,1779619832000,-268.0,0.0002,2]
[422915750,1779619832000,-358.0,0.0002,2]
[422915749,1779619832000,-152.0,0.0002,2]
[422915753,1779619832000,-178.1,0.00020381,2]
[422915718,1779619832000,-500.0,0.00018873,2]
[422915755,1779619832000,-154.67,0.00020574,2]
[422915754,1779619832000,-181.78,0.00020572,2]
[422915756,1779619832000,-150.0,0.000206,30]
[422915751,1779619832000,-165.0,0.0002,2]
[422915759,1779619832000,-9678.86289997,0.00020951,2]
[422915757,1779619832000,-150.0,0.00020726,2]
[422915760,1779619832000,-1254.41808677,0.00020951,2]
[422915761,1779619832000,-727.07592786,0.00020951,2]
[422915764,1779619832000,-500.0,0.00020963,2]
[422915763,1779619832000,-11551.43,0.00020951,2]
[422915762,1779619832000,-955.0230854,0.00020951,2]
[422915765,1779619832000,-500.0,0.00020963,2]
[422915766,1779619832000,-500.0,0.00020963,2]
[422915768,1779619832000,-500.0,0.00020963,2]
[422915767,1779619832000,-500.0,0.00020963,2]
[422915758,1779619832000,-168.29697578,0.00020726,2]
[422915752,1779619832000,-166.34,0.0002032,2]
[422915747,1779619832000,-168.0,0.0002,2]
[422915741,1779619832000,-154.67,0.0001991,2]
[422915723,1779619832000,-500.0,0.00018873,2]
[422915721,1779619832000,-500.0,0.00018873,2]
[422915744,1779619832000,-387.00698607,0.00019949,2]
[422915720,1779619832000,-500.0,0.00018873,2]
[422915725,1779619832000,-500.0,0.00018873,2]
[422915727,1779619832000,-500.0,0.00018873,2]
[422915726,1779619832000,-500.0,0.00018873,2]
[422915730,1779619832000,-500.0,0.00018873,2]
[422915731,1779619832000,-500.0,0.00018873,2]
[422915729,1779619832000,-500.0,0.00018873,2]
[422915728,1779619832000,-500.0,0.00018873,2]
[422915732,1779619832000,-500.0,0.00018873,2]
[422915743,1779619832000,-1832.9781872,0.00019949,2]
[422915733,1779619832000,-179.73514104,0.00018873,2]
[422915738,1779619832000,-154.67,0.00019246,2]
[422915736,1779619832000,-500.0,0.00018873,2]
[422915739,1779619832000,-166.34,0.00019665,2]
[422915742,1779619832000,-276.0,0.00019918,2]
[422915737,1779619832000,-166.83,0.00019147,2]
[422915735,1779619832000,-343.21785169,0.00018873,2]
[422915734,1779619832000,-500.0,0.00018873,2]